bitfinex/quotes_SOLUSD_20260201
["timestamp","ask_amount","ask_price","bid_price","bid_amount"]
[1769942137750,1.09926029,105.16,105.12,18.2084247]
[1769942137949,1.09926029,105.16,105.13,8.69548711]
[1769942138347,5.91808766,105.2,105.15,8.69548711]
[1769942138348,1.06210108,105.19,105.15,8.69548711]
[1769942138850,1.06210108,105.19,105.14,8.69548711]
[1769942139374,10.56887285,105.19,105.14,18.20605333]
[1769942139662,1.06210108,105.18,105.14,18.20605333]
[1769942139844,1.06210108,105.18,105.15,8.69548711]
[1769942140038,1.06210108,105.17,105.13,9.51172137]
[1769942140241,1.06210108,105.16,105.13,9.51172137]
[1769942140658,1.06210108,105.16,105.13,18.20720848]
[1769942140959,1.06210108,105.18,105.14,18.20639315]
[1769942141162,1.06210108,105.18,105.13,9.51203272]
[1769942141163,1.06210108,105.17,105.13,9.51203272]
[1769942141344,1.06210108,105.17,105.14,8.69548711]
[1769942141545,1.06210108,105.18,105.15,8.69548711]
[1769942143039,1.06210108,105.17,105.13,42.93501484]
[1769942143862,1.06210108,105.17,105.13,41.98760163]
[1769942145658,1.06210108,105.17,105.14,8.69548711]
[1769942145854,0.98384356,105.19,105.15,8.69548711]
[1769942146653,0.98384356,105.18,105.13,34.23544542]
[1769942146962,0.98384356,105.18,105.14,8.69548711]
[1769942147664,0.98384356,105.16,105.12,9.51293759]
[1769942147845,0.98384356,105.17,105.13,8.69548711]
[1769942148968,0.98384356,105.17,105.08,9.63613273]
[1769942148969,0.98384356,105.13,105.08,9.63806344]
[1769942149149,0.98384356,105.13,105.1,9.5142525]
[1769942149350,0.98384356,105.13,105.11,9.51382014]
[1769942149750,0.98384356,105.13,105.09,9.63806344]
[1769942149751,0.98384356,105.13,105.09,18.21060478]
[1769942149977,0.98384356,105.13,105.09,9.51511767]
[1769942150158,0.98384356,105.13,105.1,9.51468578]
[1769942150354,0.98384356,105.13,105.11,9.51377661]
[1769942150558,0.98384356,105.14,105.11,9.51377661]
[1769942150762,9.67933067,105.13,105.08,9.6373261]
[1769942150957,0.98384356,105.13,105.09,18.21059288]
[1769942151273,0.98384356,105.1,105.06,8.69548711]
[1769942151776,0.98384356,105.1,105.05,18.21467154]
[1769942151777,0.98384356,105.09,105.05,18.21467154]
[1769942151984,0.98384356,105.08,105.05,9.51918443]
[1769942152356,0.98384356,105.08,105.06,9.51825805]
[1769942152556,0.98384356,105.09,105.07,9.51736794]
[1769942152772,0.98384356,105.09,105.07,9.51739119]
[1769942152971,9.67933067,105.12,105.08,9.51629904]
[1769942153155,0.98384356,105.11,105.08,9.51629904]
[1769942153750,0.98384356,105.1,105.07,9.51726874]
[1769942154174,0.98384356,105.1,105.06,18.21352737]
[1769942154670,0.98384356,105.08,105.04,23.79931045]
[1769942154867,0.98384356,105.08,105.05,9.51874978]
[1769942155255,9.67933067,105.07,105.03,9.62032515]
[1769942155456,0.98384356,105.05,105.03,9.62032515]
[1769942155659,0.98384356,105.05,105.0,23.80901002]
[1769942155868,0.98384356,105.04,105.01,9.52235752]
[1769942156066,0.98384356,105.04,105.02,9.52184941]
[1769942156469,0.98384356,105.04,105.0,23.80901002]
[1769942156756,0.98384356,105.07,105.04,9.5201696]
[1769942157090,0.98384356,105.06,105.03,9.52095563]
[1769942157268,9.51656095,105.08,105.03,19.22376447]
[1769942157269,0.98384356,105.08,105.03,19.22376447]
[1769942157461,0.98384356,105.07,105.03,42.01916577]
[1769942158175,0.98384356,105.07,105.03,33.32367866]
[1769942158377,0.98384356,105.07,105.03,9.52095563]
[1769942158685,0.98384356,105.07,105.03,18.21644274]
[1769942158986,0.98384356,105.07,105.04,8.69548711]
[1769942159190,0.98384356,105.07,105.04,9.52006673]
[1769942159375,0.98384356,105.07,105.04,18.21555384]
[1769942159988,0.98384356,105.09,105.05,8.69548711]
[1769942160288,0.98384356,105.09,105.06,8.69548711]
[1769942160658,0.98384356,105.09,105.04,34.32784542]
[1769942160864,0.98384356,105.09,105.06,8.69548711]
[1769942161061,0.98384356,105.11,105.08,8.69548711]
[1769942161266,0.98384356,105.11,105.07,18.2126028]
[1769942161489,0.98384356,105.13,105.08,10.52356466]
[1769942161667,0.98384356,105.12,105.09,8.69548711]
[1769942161868,0.98384356,105.12,105.08,18.21173004]
[1769942162090,0.98384356,105.12,105.09,8.69548711]
[1769942162471,0.98384356,105.14,105.1,8.69548711]
[1769942163285,10.49388163,105.16,105.12,8.69548711]
[1769942163463,9.67933067,105.15,105.11,18.20932975]
[1769942163669,0.98384356,105.14,105.1,18.20993757]
[1769942163870,0.98384356,105.13,105.1,18.20993757]
[1769942164088,0.98384356,105.15,105.11,8.69548711]
[1769942164291,0.98384356,105.15,105.12,8.69548711]
[1769942164587,0.98384356,105.15,105.1,9.51445046]
[1769942164789,0.98384356,105.15,105.12,8.69548711]
[1769942165172,10.49407318,105.15,105.11,8.69548711]
[1769942165690,10.49407318,105.15,105.09,18.21075785]
[1769942165691,0.98384356,105.13,105.09,18.21075785]
[1769942166274,0.98384356,105.12,105.08,18.21167749]
[1769942166469,0.98384356,105.11,105.07,32.48776913]
[1769942166791,33.28578834,105.15,105.06,9.51822196]
[1769942166792,0.98384356,105.09,105.06,9.51822196]
[1769942167092,0.98384356,105.09,105.06,18.21370907]
[1769942168793,0.98384356,105.09,105.06,9.51822196]
[1769942169091,0.98384356,105.09,105.07,8.69548711]
[1769942169287,0.98384356,105.09,105.05,9.51913897]
[1769942169493,0.98384356,105.09,105.05,18.21462608]
[1769942169991,0.98384356,105.09,105.06,8.69548711]
[1769942170194,10.49029131,105.11,105.07,8.69548711]
[1769942170374,0.97612374,105.12,105.08,8.69548711]
[1769942170576,0.97612374,105.12,105.09,8.69548711]
[1769942171088,0.97612374,105.12,105.07,1.03408348]
[1769942171089,0.97612374,105.12,105.08,8.69548711]
[1769942171307,0.97612374,105.11,105.08,8.69548711]
[1769942171513,9.67161085,105.1,105.06,18.21350182]
[1769942171714,0.97612374,105.09,105.07,9.51741816]
[1769942173696,0.97612374,105.11,105.07,18.21290527]
[1769942174294,0.97612374,105.1,105.07,18.21290527]
[1769942174794,0.97612374,105.1,105.06,18.2135484]
[1769942174995,0.97612374,105.07,105.04,9.51989121]
[1769942175195,0.97612374,105.05,105.0,1.0321064]
[1769942175397,0.97612374,105.05,105.02,18.21723223]
[1769942176210,9.51829518,105.07,105.01,18.21838497]
[1769942176211,0.97612374,105.04,105.01,18.21838497]
[1769942176380,0.97612374,105.06,105.02,18.21701147]
[1769942176802,9.67161085,105.06,105.02,18.21701147]
[1769942177182,0.97612374,105.05,105.02,18.21701147]
[1769942177402,0.97612374,105.04,104.99,1.03134699]
[1769942177575,0.97612374,105.04,105.02,8.69548711]
[1769942177779,0.97612374,105.06,105.02,8.69548711]
[1769942177994,0.97612374,105.06,105.03,8.69548711]
[1769942178296,0.97612374,105.04,105.0,33.33333332]
[1769942178501,0.97612374,105.04,105.01,8.69548711]
[1769942179189,0.97612374,105.03,105.0,9.52380952]
[1769942179493,0.97612374,105.03,104.99,18.22014396]
[1769942179887,0.97612374,105.03,104.99,9.52465685]
[1769942180196,9.67161085,105.02,104.98,8.69548711]
[1769942180396,0.97612374,104.98,104.92,4.94472064]
[1769942180583,8.69548711,104.94,104.91,10.58926081]
[1769942180778,12.97075796,105.0,104.92,1.05745784]
[1769942180986,8.69548711,104.96,104.92,1.05745784]
[1769942181181,4.27527085,105.01,104.93,1.05745784]
[1769942181380,8.69548711,104.98,104.94,1.05745784]
[1769942181586,9.52540976,104.99,104.94,19.28184197]
[1769942181792,9.52540976,104.99,104.94,10.58635486]
[1769942182098,9.52540976,104.99,104.94,9.75294495]
[1769942182298,8.69548711,104.98,104.94,9.75294495]
[1769942182499,8.69548711,104.97,104.92,1.05745784]
[1769942182689,8.69548711,104.95,104.91,9.75294495]
[1769942182995,8.69548711,104.98,104.93,9.75294495]
[1769942183182,8.69548711,104.96,104.88,1.05745784]
[1769942183386,8.69548711,104.95,104.91,9.53166618]
[1769942183583,18.22421083,104.95,104.9,1.05745784]
[1769942183790,8.69548711,104.94,104.9,1.05745784]
[1769942183986,9.52872372,104.95,104.9,1.05745784]
[1769942184187,8.69548711,104.92,104.88,9.53438541]
[1769942184498,33.34959079,104.95,104.88,8.69548711]
[1769942184793,8.69548711,104.94,104.9,19.28567936]
[1769942184986,8.69548711,104.95,104.9,9.75294495]
[1769942185191,9.52776523,104.96,104.89,10.5909527]
[1769942185192,8.69548711,104.94,104.89,10.5909527]
[1769942185391,18.22325234,104.96,104.91,9.75294495]
[1769942185708,47.57935542,105.09,104.94,9.75294495]
[1769942185709,8.69548711,104.99,104.94,9.75294495]
[1769942185903,8.69548711,104.97,104.92,9.75294495]
[1769942186205,8.69548711,104.96,104.92,9.75294495]
[1769942186508,8.69548711,104.97,104.93,8.69548711]
[1769942186802,8.69548711,104.97,104.88,19.28707274]
[1769942186803,8.69548711,104.94,104.88,19.28707274]
[1769942187003,8.69548711,104.9,104.86,1.38335994]
[1769942187206,0.28432314,104.92,104.86,0.3259021]
[1769942187387,8.69548711,104.87,104.86,0.3259021]
[1769942187589,8.69548711,104.88,104.86,0.3259021]
[1769942187982,8.69548711,104.9,104.86,9.86229995]
[1769942188197,9.53228796,104.91,104.86,10.91975779]
[1769942188396,8.69548711,104.9,104.86,19.6152449]
[1769942189004,8.69548711,104.89,104.86,1.38335994]
[1769942189205,8.69548711,104.88,104.86,0.3259021]
[1769942190313,9.52834683,104.95,104.88,1.05745784]
[1769942190498,8.69548711,104.93,104.89,9.75294495]
[1769942190706,8.69548711,104.93,104.89,1.05745784]
[1769942190904,9.52834683,104.95,104.91,8.69548711]
[1769942191300,8.69548711,104.97,104.93,8.69548711]
[1769942191504,8.69548711,104.96,104.92,9.75294495]
[1769942191694,8.7317199,104.97,104.92,1.05745784]
[1769942191907,8.7317199,104.97,104.92,9.78917774]
[1769942192309,8.7317199,104.97,104.93,8.7317199]
[1769942192722,9.52471663,104.99,104.95,1.05745784]
[1769942193010,9.52471663,104.99,104.93,1.05745784]
[1769942193186,8.7317199,104.98,104.93,9.78917774]
[1769942193386,8.7317199,104.97,104.92,19.320026]
[1769942193595,18.26070322,104.95,104.9,10.59025793]
[1769942193816,18.26070322,104.95,104.91,8.7317199]
[1769942194006,18.25825128,104.97,104.93,9.78917774]
[1769942194322,18.25752843,104.98,104.94,8.7317199]
[1769942194492,9.52580853,104.98,104.95,9.78917774]
[1769942194809,8.7317199,105.0,104.96,8.7317199]
[1769942195009,8.7317199,104.99,104.95,9.78917774]
[1769942195511,23.80839187,105.01,104.92,9.78917774]
[1769942195512,8.7317199,104.97,104.92,9.78917774]
[1769942195688,18.25921759,104.96,104.92,8.7317199]
[1769942195894,18.25921759,104.96,104.91,19.32053107]
[1769942196311,8.7317199,104.95,104.91,1.05745784]
[1769942196509,8.7317199,104.94,104.91,1.05745784]
[1769942196715,8.7317199,104.94,104.89,19.32268634]
[1769942197015,8.7317199,104.93,104.88,1.05745784]
[1769942197198,8.7317199,104.93,104.88,9.78917774]
[1769942197602,8.7317199,104.93,104.88,1.05745784]
[1769942197811,9.53188087,104.92,104.87,10.59279437]
[1769942198023,18.26225183,104.93,104.89,1.05745784]
[1769942198393,4.55959399,104.98,104.91,9.78917774]
[1769942198612,0.02046048,104.93,104.88,10.59212704]
[1769942198918,8.75218038,104.93,104.88,19.32384694]
[1769942199216,8.7317199,104.92,104.88,1.05745784]
[1769942199518,8.7317199,104.91,104.88,1.05745784]
[1769942200219,18.26419905,104.91,104.88,1.05745784]
[1769942200719,9.53247915,104.91,104.88,9.78917774]
[1769942200914,18.26314233,104.92,104.88,19.32382869]
[1769942201121,9.52858719,104.95,104.92,1.05745784]
[1769942201306,9.52858719,104.95,104.92,9.78917774]
[1769942201511,9.52858719,104.95,104.89,1.05745784]
[1769942201821,18.28497179,104.95,104.9,9.78917774]
[1769942202196,8.7317199,104.94,104.9,9.78917774]
[1769942202398,8.7317199,104.94,104.9,1.05745784]
[1769942202627,33.37411896,104.95,104.9,1.05745784]
[1769942202807,8.7317199,104.94,104.9,1.05745784]
[1769942202992,8.7317199,104.93,104.88,1.05745784]
[1769942203320,8.7317199,104.91,104.87,1.05745784]
[1769942203495,8.7317199,104.9,104.86,0.3259021]
[1769942203695,8.75910754,104.91,104.86,1.38335994]
[1769942203918,18.29163422,104.91,104.87,8.7317199]
[1769942204098,18.29190703,104.92,104.87,1.05745784]
[1769942204301,8.7317199,104.91,104.87,9.78917774]
[1769942205039,8.7317199,104.9,104.86,10.11507984]
[1769942205399,8.7317199,104.9,104.86,1.38335994]
[1769942205802,18.26527441,104.9,104.86,1.38335994]
[1769942206012,9.53230769,104.91,104.87,9.78917774]
[1769942206211,8.7630758,104.93,104.88,9.78917774]
[1769942206621,18.26227369,104.93,104.89,9.78917774]
[1769942206936,8.7317199,104.92,104.87,9.78917774]
[1769942207119,8.76436828,104.91,104.86,18.59413921]
[1769942207324,8.7317199,104.9,104.86,10.91987715]
[1769942207537,8.7317199,104.9,104.86,1.38335994]
[1769942207901,8.76436828,104.91,104.86,19.65157749]
[1769942208203,8.7317199,104.9,104.86,19.65157749]
[1769942208635,8.7317199,104.9,104.86,10.91985759]
[1769942208802,8.7317199,104.92,104.88,1.05745784]
[1769942209001,8.76690888,104.92,104.87,1.05745784]
[1769942209224,8.7317199,104.91,104.87,9.78917774]
[1769942209426,8.7317199,104.91,104.87,1.05745784]
[1769942209612,8.76690888,104.92,104.87,9.78917774]
[1769942209925,9.53197979,104.91,104.87,1.05745784]
[1769942210129,18.30013713,104.91,104.86,9.86239975]
[1769942210307,9.56841723,104.91,104.87,19.32478946]
[1769942210507,8.7317199,104.94,104.9,1.05745784]
[1769942210725,4.27527085,104.96,104.91,9.78917774]
[1769942210726,9.5281726,104.96,104.91,9.78917774]
[1769942211025,9.5281726,104.96,104.92,8.7317199]
[1769942211232,18.29756405,104.96,104.91,9.78917774]
[1769942211440,8.7317199,104.95,104.91,9.78917774]
[1769942211613,8.7317199,104.95,104.91,1.05745784]
[1769942211808,8.7317199,104.92,104.88,9.78917774]
[1769942212013,0.0388915,104.93,104.89,8.7317199]
[1769942212210,8.7317199,104.93,104.89,9.78917774]
[1769942212741,18.26047943,104.95,104.91,9.78917774]
[1769942213246,18.26047943,104.95,104.91,1.05745784]
[1769942213410,8.7317199,104.94,104.91,1.05745784]
[1769942213809,8.7730094,104.93,104.89,1.05745784]
[1769942214019,8.7317199,104.91,104.88,9.53450725]
[1769942214465,8.7317199,104.91,104.87,19.32436392]
[1769942215133,8.7317199,104.89,104.86,0.3259021]
[1769942216612,0.04478421,104.86,104.82,9.5397821]
[1769942216824,0.04478421,104.88,104.83,10.59663951]
[1769942217013,8.7317199,104.86,104.81,9.78917774]
[1769942217223,8.7317199,104.86,104.82,18.27135248]
[1769942217531,8.7317199,104.86,104.82,19.32881032]
[1769942217932,0.04478421,104.87,104.82,10.59709042]
[1769942218241,0.04592245,104.89,104.84,9.78917774]
[1769942218444,8.77764235,104.89,104.84,1.05745784]
[1769942218634,8.7317199,104.87,104.83,9.78917774]
[1769942218837,8.7317199,104.88,104.84,9.78917774]
[1769942220045,8.7317199,104.88,104.84,1.05745784]
[1769942220354,18.26488003,104.9,104.86,9.78917774]
[1769942220532,18.26488003,104.9,104.86,1.05745784]
[1769942221025,8.7317199,104.89,104.86,1.05745784]
[1769942221229,9.53316013,104.9,104.82,19.32902501]
[1769942221230,8.78097925,104.87,104.82,19.32902501]
[1769942221427,8.7317199,104.89,104.85,1.05745784]
[1769942221661,33.41572748,104.9,104.85,9.78917774]
[1769942221963,8.7317199,104.89,104.85,9.78917774]
[1769942222136,18.26593575,104.89,104.85,9.78917774]
[1769942222340,9.53421585,104.89,104.85,9.78917774]
[1769942222537,8.7317199,104.91,104.87,8.7317199]
[1769942222740,9.5314821,104.92,104.89,1.05745784]
[1769942222930,9.53057113,104.93,104.89,9.78917774]
[1769942223130,9.53057113,104.93,104.89,1.05745784]
[1769942223332,33.40739909,104.93,104.87,1.05745784]
[1769942223548,33.40739909,104.93,104.88,8.7317199]
[1769942223937,42.13911899,104.93,104.88,9.78917774]
[1769942224143,42.13911899,104.93,104.85,33.38100552]
[1769942224144,9.53057113,104.93,104.89,9.78917774]
[1769942224350,18.26229103,104.93,104.89,9.78917774]
[1769942225155,8.7317199,104.91,104.87,9.78917774]
[1769942225453,0.05353239,104.92,104.87,9.78917774]
[1769942225627,8.7317199,104.92,104.88,9.78917774]
[1769942226144,33.4105487,104.93,104.88,9.78917774]
[1769942226347,18.26332235,104.92,104.88,9.78917774]
[1769942226860,8.7317199,104.91,104.87,8.7317199]
[1769942227157,8.7317199,104.91,104.8,26.48]
[1769942227158,0.055596,104.91,104.85,9.78917774]
[1769942227362,8.78832996,104.88,104.83,9.81449171]
[1769942227534,8.7317199,104.86,104.83,1.08277181]
[1769942227861,0.05661006,104.88,104.83,9.81449171]
[1769942228342,8.7317199,104.89,104.85,8.7317199]
[1769942228650,8.7317199,104.88,104.84,9.81449171]
[1769942228833,8.7317199,104.88,104.84,19.35278791]
[1769942229030,8.7317199,104.89,104.85,9.81449171]
[1769942229352,8.7317199,104.9,104.86,9.81449171]
[1769942229551,8.7317199,104.89,104.84,10.62106801]
[1769942229856,8.7317199,104.89,104.85,9.81449171]
[1769942230452,9.5332736,104.9,104.87,8.7317199]
[1769942230749,9.5332736,104.9,104.86,1.08277181]
[1769942230950,9.5332736,104.9,104.86,9.81449171]
[1769942231646,18.2649935,104.9,104.86,9.81449171]
[1769942232347,42.09721466,104.9,104.86,9.81449171]
[1769942232953,42.09721466,104.9,104.86,1.08277181]
[1769942233457,8.7317199,104.88,104.85,1.08277181]
[1769942233654,8.7317199,104.88,104.84,1.08915272]
[1769942233838,8.7317199,104.89,104.85,1.08915272]
[1769942234162,8.7317199,104.9,104.86,9.82087262]
[1769942234860,8.7317199,104.89,104.85,1.08915272]
[1769942235034,8.7317199,104.88,104.85,1.08915272]
[1769942235233,8.7317199,104.9,104.85,9.82087262]
[1769942235451,32.56166938,104.91,104.87,9.82087262]
[1769942235856,8.7317199,104.9,104.87,1.08915272]
[1769942236437,8.7317199,104.88,104.83,9.82087262]
[1769942236746,8.7317199,104.88,104.84,9.82087262]
[1769942237057,8.7317199,104.88,104.84,1.08915272]
[1769942237559,9.53561552,104.87,104.84,1.08915272]
[1769942237775,9.53561552,104.87,104.84,9.82087262]
[1769942237950,18.26733542,104.87,104.83,19.35965822]
[1769942238151,9.53561552,104.87,104.84,1.08915272]
[1769942239165,18.26733542,104.87,104.83,8.7317199]
[1769942239359,8.7317199,104.84,104.79,9.54241357]
[1769942239562,18.27263723,104.82,104.78,1.08915272]
[1769942239862,8.7317199,104.81,104.78,1.08915272]
[1769942240360,9.54091733,104.82,104.77,0.1]
[1769942240361,9.74191171,104.79,104.77,0.1]
[1769942240582,1.01019181,104.81,104.77,8.8317199]
[1769942240870,9.74191171,104.81,104.77,9.64445434]
[1769942241050,18.27263723,104.82,104.77,18.37617424]
[1769942241640,10.55110914,104.82,104.77,9.64445434]
[1769942241847,8.7317199,104.81,104.77,8.8317199]
[1769942242047,18.27263723,104.82,104.78,8.7317199]
[1769942242358,1.01019181,104.84,104.8,9.81449171]
[1769942242561,9.74191171,104.86,104.81,9.81449171]
[1769942242957,1.01019181,104.84,104.79,9.81449171]
[1769942243150,8.7317199,104.81,104.77,1.18277181]
[1769942243464,33.3812974,104.85,104.77,0.1]
[1769942243465,9.74191171,104.79,104.77,0.1]
[1769942243660,8.7317199,104.78,104.75,1.08277181]
[1769942243869,19.2856368,104.79,104.75,1.08277181]
[1769942244161,8.7317199,104.79,104.75,1.08277181]
[1769942244371,19.28424485,104.8,104.75,9.81449171]
[1769942244659,19.28424485,104.8,104.75,8.7317199]
[1769942244959,19.28424485,104.8,104.76,1.08277181]
[1769942245166,8.7317199,104.82,104.78,1.08277181]
[1769942245348,8.7317199,104.81,104.78,1.08277181]
[1769942245551,118.62640485,104.86,104.74,1.08277181]
[1769942245552,8.7317199,104.79,104.74,1.08277181]
[1769942245756,8.7317199,104.81,104.77,9.81449171]
[1769942246451,43.13264584,104.82,104.77,19.35916992]
[1769942246780,19.28223562,104.82,104.78,9.81449171]
[1769942247062,19.28223562,104.82,104.78,1.08277181]
[1769942247269,8.7317199,104.8,104.76,19.35982714]
[1769942247461,9.74191171,104.81,104.76,19.35982714]
[1769942247663,8.7317199,104.8,104.76,10.62810724]
[1769942247965,18.27340167,104.81,104.77,1.08277181]
[1769942248161,8.7317199,104.8,104.75,19.3606489]
[1769942248362,8.7317199,104.8,104.76,9.81449171]
[1769942248867,8.7317199,104.8,104.76,1.08277181]
[1769942249043,8.7317199,104.79,104.76,1.08277181]
[1769942249249,8.7317199,104.8,104.76,9.81449171]
[1769942249448,8.7317199,104.79,104.76,1.08277181]
[1769942249966,9.54237935,104.8,104.76,19.35997853]
[1769942250160,9.54130518,104.81,104.78,1.08277181]
[1769942250360,18.27302508,104.81,104.78,1.08277181]
[1769942250671,9.5405136,104.82,104.79,1.08277181]
[1769942250865,18.2722335,104.82,104.78,8.7317199]
[1769942251163,18.2722335,104.82,104.78,1.08277181]
[1769942251364,18.2722335,104.82,104.78,9.81449171]
[1769942251565,18.2722335,104.82,104.78,1.08277181]
[1769942251759,9.53974786,104.83,104.8,9.81449171]
[1769942251977,9.53834414,104.84,104.8,9.81449171]
[1769942252174,9.53834414,104.84,104.81,1.08277181]
[1769942252376,33.58235858,104.87,104.82,1.08277181]
[1769942252671,1.01019181,104.85,104.79,1.08277181]
[1769942252967,8.7317199,104.82,104.79,1.08277181]
[1769942253166,8.7317199,104.81,104.77,9.81449171]
[1769942253370,8.7317199,104.81,104.77,1.08277181]
[1769942253571,8.75849243,104.81,104.77,1.08277181]
[1769942253874,8.75849243,104.81,104.78,1.08277181]
[1769942254055,18.29957199,104.81,104.78,1.08277181]
[1769942254549,18.29957199,104.81,104.77,18.30282867]
[1769942254750,8.75849243,104.78,104.73,1.08277181]
[1769942255053,8.75849243,104.76,104.73,1.08277181]
[1769942255454,34.40395718,104.81,104.75,1.08277181]
[1769942255648,34.40395718,104.81,104.74,8.75849243]
[1769942255649,18.29957199,104.81,104.77,9.84126424]
[1769942255855,9.76868424,104.83,104.78,9.84126424]
[1769942256068,9.53770192,104.85,104.81,1.08277181]
[1769942256271,8.75849243,104.84,104.79,9.84126424]
[1769942256474,8.75849243,104.83,104.79,1.08277181]
[1769942256969,1.01019181,104.83,104.79,9.84126424]
[1769942257174,1.01019181,104.83,104.78,1.07162558]
[1769942257372,8.75849243,104.8,104.76,1.07162558]
[1769942257575,1.05258214,104.8,104.75,1.07162558]
[1769942257775,8.75849243,104.79,104.76,1.07162558]
[1769942258359,18.30168894,104.79,104.75,1.07162558]
[1769942258559,18.30069034,104.8,104.75,9.83011801]
[1769942258973,18.30069034,104.8,104.76,1.07162558]
[1769942259460,9.81107457,104.78,104.74,1.07162558]
[1769942259652,8.75849243,104.78,104.74,1.07162558]
[1769942259851,8.75849243,104.79,104.74,9.83011801]
[1769942260063,18.30200122,104.79,104.74,9.83011801]
[1769942260462,9.54350879,104.79,104.75,9.83011801]
[1769942260772,9.54107432,104.81,104.78,1.07162558]
[1769942261074,9.54107432,104.81,104.66,9.55422718]
[1769942261075,0.28432314,104.77,104.66,9.55422718]
[1769942261274,1.05258214,104.74,104.65,5.39381026]
[1769942261471,9.81107457,104.72,104.66,1.07162558]
[1769942261678,8.75849243,104.71,104.67,1.07162558]
[1769942261862,4.952,104.74,104.67,1.07162558]
[1769942262180,4.952,104.74,104.69,1.07162558]
[1769942262181,18.30685488,104.73,104.69,1.07162558]
[1769942262476,2.61594346,104.74,104.71,1.07162558]
[1769942262972,2.61594346,104.74,104.7,1.07162558]
[1769942263280,21.97468329,104.74,104.69,8.75849243]
[1769942263461,13.21619086,104.74,104.69,9.83011801]
[1769942263662,12.16360872,104.74,104.69,1.07162558]
[1769942263877,2.61594346,104.74,104.7,9.83011801]
[1769942264077,11.37443589,104.74,104.7,9.83011801]
[1769942264379,2.61594346,104.74,104.71,1.07046802]
[1769942264553,2.61594346,104.74,104.7,9.82896045]
[1769942264875,2.61594346,104.74,104.71,1.07046802]
[1769942265071,2.61594346,104.74,104.72,8.75849243]
[1769942265256,1.50846753,104.74,104.73,1.07046802]
[1769942265456,1.09462233,104.78,104.74,8.75849243]
[1769942266272,18.30212883,104.79,104.76,8.75849243]
[1769942266273,9.5436364,104.79,104.76,8.75849243]
[1769942266874,10.63825873,104.79,104.75,8.75849243]
[1769942267257,1.09462233,104.79,104.74,0.68989929]
[1769942267471,10.63770131,104.79,104.74,0.68989929]
[1769942267674,10.63770131,104.79,104.75,8.75849243]
[1769942268375,10.63770131,104.79,104.74,0.68989929]
[1769942268580,9.85311476,104.77,104.72,18.30755179]
[1769942268775,9.85311476,104.77,104.73,8.75849243]
[1769942269281,9.54307898,104.79,104.68,74.28040616]
[1769942269282,1.09462233,104.74,104.7,8.75849243]
[1769942269577,9.85311476,104.73,104.66,0.69411976]
[1769942269762,4.27527085,104.77,104.69,8.75849243]
[1769942269763,9.85311476,104.74,104.69,8.75849243]
[1769942269958,1.09462233,104.74,104.71,8.75849243]
[1769942270584,1.09462233,104.73,104.69,8.75849243]
[1769942270874,9.85311476,104.75,104.7,8.75849243]
[1769942271078,1.09462233,104.75,104.71,8.75849243]
[1769942271378,9.85311476,104.75,104.7,8.75849243]
[1769942271559,1.09462233,104.75,104.72,8.75849243]
[1769942271880,19.39804111,104.77,104.73,8.75849243]
[1769942272081,1.09462233,104.78,104.75,8.75849243]
[1769942272259,1.09462233,104.77,104.71,0.69439486]
[1769942272461,1.09462233,104.77,104.74,8.75849243]
[1769942272786,10.63785755,104.79,104.75,8.75849243]
[1769942272972,1.09462233,104.79,104.76,8.75849243]
[1769942273360,9.85311476,104.79,104.75,8.75849243]
[1769942273572,1.09462233,104.79,104.76,8.75849243]
[1769942274082,1.09462233,104.78,104.72,9.54927425]
[1769942274266,9.85311476,104.77,104.73,8.75849243]
[1769942274582,19.39794938,104.77,104.73,8.75849243]
[1769942274883,1.09462233,104.76,104.72,9.54927425]
[1769942275175,8.75849243,104.75,104.7,10.24530244]
[1769942275378,9.54483462,104.77,104.69,18.31017802]
[1769942275379,1.09462233,104.74,104.69,18.31017802]
[1769942275572,8.75849243,104.75,104.71,8.75849243]
[1769942275777,9.85311476,104.75,104.71,8.75849243]
[1769942275973,1.09462233,104.75,104.69,9.45341878]
[1769942276177,9.85311476,104.75,104.7,18.30938701]
[1769942276487,9.85311476,104.74,104.7,9.55089458]
[1769942276679,9.85311476,104.74,104.7,8.75849243]
[1769942277185,8.75849243,104.77,104.72,9.45354786]
[1769942277363,9.85311476,104.77,104.72,9.45354786]
[1769942277773,19.39795904,104.77,104.72,9.45354786]
[1769942278663,19.39795904,104.77,104.72,19.00228462]
[1769942278980,19.39798141,104.77,104.73,8.75849243]
[1769942279181,9.85311476,104.76,104.71,19.00368968]
[1769942279563,9.85311476,104.75,104.7,9.55076654]
[1769942279769,33.40665914,104.77,104.72,8.75849243]
[1769942279770,8.75849243,104.76,104.72,8.75849243]
[1769942279971,19.39798141,104.77,104.72,18.30763842]
[1769942280165,9.85311476,104.77,104.73,8.75849243]
[1769942280372,1.09462233,104.79,104.75,8.75849243]
[1769942280681,1.09462233,104.79,104.75,9.54653937]
[1769942280867,24.94415039,104.83,104.78,8.75849243]
[1769942281073,9.85311476,104.82,104.77,9.45404952]
[1769942281274,1.09462233,104.81,104.77,8.75849243]
[1769942281779,9.85311476,104.81,104.77,8.75849243]
[1769942282005,1.09462233,104.81,104.77,18.3031591]
[1769942282184,1.09462233,104.8,104.76,9.54536257]
[1769942282370,9.85311476,104.79,104.74,9.45417136]
[1769942282574,9.85311476,104.79,104.75,8.75849243]